[Event "45th FIDE Olympiad 2024"]
[Site "Budapest"]
[Date "2024.09.12"]
[Round "2.9"]
[White "Stefansson, Vignir Vatnar"]
[Black "Gukesh, D."]
[Result "0-1"]
[ECO "E10"]
[WhiteElo "2531"]
[BlackElo "2764"]
[Annotator "TA"]
[PlyCount "80"]
[EventDate "2024.09.05"]
[EventType "team-tourn"]
[EventCountry "HUN"]
[SourceTitle "playchess.com"]
[Source "ChessBase"]
[SourceQuality "1"]
[WhiteTeam "Iceland"]
[BlackTeam "India"]
[WhiteTeamCountry "ISL"]
[BlackTeamCountry "IND"]
[TimeControl "40/5400+30:1800+30"]

{[%evp 12,80,21,13,23,12,16,4,29,19,30,18,12,18,35,19,22,23,48,40,41,35,33,48,37,30,31,30,39,32,26,15,14,25,64,20,22,11,27,0,5,13,32,20,32,21,38,12,14,13,25,0,14,7,4,-41,-52,-39,27,-390,-381,-399,-393,-1033,-910,-29976,-29970,-29986,-29987,-29987,-29988]} 1. d4 {[%emt 0:00:03]} Nf6 {[%emt 0:00:07]} 2. c4 {[%emt 0:00:08]} e6 {[%emt 0:00:05]} 3. Nf3 {[%emt 0:00:27]} h6 {[%emt 0:00:08]} 4. g3 {[%emt 0:05:10]} Bb4+ {[%emt 0:00:07]} 5. Bd2 {[%emt 0:02:54]} Be7 {[%emt 0:00:07]} 6. Bg2 {[%emt 0:00:10] E10: Blumenfeld Gambit.} O-O {[%emt 0:00:08]} 7. O-O {[%emt 0:00:24]} d5 {[%emt 0:00:04]} 8. Qc2 {[%emt 0:02:08]} c6 {[%emt 0:00:12]} 9. Rd1 {[%emt 0:02:58]} Nbd7 {[%emt 0:00:18]} 10. Bf4 {[%emt 0:01:18]} a5 {[%emt 0:00:07]} 11. Nc3 {[%emt 0:03:23]} dxc4 {[%emt 0:00:47]} 12. Nd2 {[%emt 0:00:26] 12.e4 is not played anymore.} Nd5 {[%emt 0:08:33]} 13. Nxc4 {[%emt 0:00:15]} Nxf4 {[%emt 0:00:06]} 14. gxf4 {[%emt 0:00:05]} Nf6 {[%emt 0:00:06]} 15. Ne5 {[%emt 0:04:37]} Bd7 {[%emt 0:00:38]} 16. e3 {[%emt 0:02:36]} Be8 $146 {[%emt 0:01:00]} ({Predecessor:} 16... Qc7 17. Rac1 Rad8 18. Qb3 Be8 19. f5 Nd7 20. Nxf7 Bxf7 21. fxe6 Bh5 22. Nd5 Nc5 23. Nxc7 Nxb3 24. axb3 Bxd1 25. Rxd1 {0-1 Nguyen,T (2013)-Gorti,A (2261) Philadelphia op 11th 2017 (7)}) 17. Kh1 {[%emt 0:02:26]} Kh8 {[%emt 0:00:09]} 18. Rg1 {[%emt 0:03:52]} Rc8 {[%emt 0:05:19]} 19. Rad1 {[%emt 0:12:13]} Bd6 {[%emt 0:26:07]} 20. Bf3 {[%emt 0:05:32]} Qe7 {[%emt 0:10:10]} 21. Na4 {[%emt 0:06:39]} Rc7 {[%emt 0:12:44]} (21... c5 {seems wilder.} 22. Nb6 Rc7 23. d5 c4) 22. Nd3 {[%emt 0:11:40]} Qd8 {[%emt 0:01:19]} 23. Rc1 {[%emt 0:01:13]} Nd5 {[%emt 0:01:46]} 24. a3 {[%emt 0:03:40]} f6 {[%emt 0:08:07]} 25. Qd2 {[%emt 0:02:47]} g5 {[%emt 0:02:32]} 26. Qxa5 {[%emt 0:01:15]} Bg6 {[%emt 0:01:31]} 27. Qd2 {[%emt 0:01:21]} Qe8 {[%emt 0:07:08]} 28. Nac5 {[%emt 0:03:06]} Rg7 {[%emt 0:00:07]} 29. Qe2 {[%emt 0:02:31]} Rfg8 {[%emt 0:02:23]} 30. Rce1 {[%emt 0:06:16]} Bb8 {[%emt 0:01:43]} 31. Qd2 {[%emt 0:02:38]} Bh7 {[%emt 0:02:28]} 32. Qd1 {[%emt 0:06:07]} b6 {[%emt 0:01:32]} 33. Nb3 {[%emt 0:00:53]} g4 {[%emt 0:05:22]} 34. Bg2 {[%emt 0:00:05]} Qh5 {[%emt 0:00:22]} (34... h5 $15) 35. Qd2 $2 {[%emt 0:01:52][%mdl 8192]} (35. Nbc1 $11 {and White has nothing to worry.}) 35... g3 $19 {[%emt 0:01:50]} 36. fxg3 {[%emt 0:00:14]} Rxg3 {[%emt 0:00:07]} 37. e4 $2 {[%emt 0:01:42]} (37. Qe2 Rxg2 (37... Qxe2 $2 38. Rxe2 Bxd3 39. hxg3 $19) 38. Rxg2 (38. Qxh5 $2 {too greedy.} Rxg1+ 39. Rxg1 Be4+ $19)) 37... R8g4 $19 {[%emt 0:01:53]} 38. Qe2 {[%emt 0:03:39]} Nxf4 {[%emt 0:00:27]} 39. Nxf4 {[%emt 0:00:38]} Bxf4 {[%emt 0:00:02]} 40. Bf3 {[%emt 0:00:37]} Rxf3 {[%emt 0:00:48]} 0-1

[Event "45th FIDE Olympiad 2024"]
[Site "Budapest"]
[Date "2024.09.12"]
[Round "2.9"]
[White "Mesfin, Leykun"]
[Black "Khalema, Sechaba"]
[Result "1-0"]
[ECO "C84"]
[WhiteElo "2118"]
[BlackElo "1779"]
[Annotator "NA"]
[PlyCount "63"]
[EventDate "2024.09.05"]
[EventType "team-tourn"]
[EventCountry "HUN"]
[SourceTitle "playchess.com"]
[Source "ChessBase"]
[SourceQuality "1"]
[WhiteTeam "Ethiopia"]
[BlackTeam "Lesotho"]
[WhiteTeamCountry "ETH"]
[BlackTeamCountry "LES"]
[TimeControl "40/5400+30:1800+30"]

1. e4 e5 2. Nf3 Nc6 3. Bb5 a6 4. Ba4 Nf6 5. d3 d6 6. c3 Be7 7. O-O O-O 8. Re1 Nd7 9. d4 exd4 10. cxd4 b5 11. Bc2 Nb4 12. Bb3 c5 13. a3 Nc6 14. Nc3 Nb6 15. d5 Na5 16. Bc2 Bg4 17. h3 Bxf3 18. Qxf3 Bf6 19. Qd3 g6 20. Bh6 Re8 21. f4 Nac4 22. b3 Nxa3 23. e5 Nxc2 24. Qxc2 dxe5 25. Ne4 Nd7 26. Rad1 exf4 27. Bxf4 Bd4+ 28. Kh1 a5 29. Bg5 Qb6 30. Rxd4 cxd4 31. Qc6 Rxe4 32. Qxa8+ 1-0

[Event "45th FIDE Olympiad 2024"]
[Site "Budapest"]
[Date "2024.09.12"]
[Round "2.10"]
[White "Erigaisi, Arjun"]
[Black "Stefansson, Hannes"]
[Result "1-0"]
[ECO "D02"]
[WhiteElo "2778"]
[BlackElo "2471"]
[Annotator "TA"]
[PlyCount "75"]
[EventDate "2024.09.05"]
[EventType "team-tourn"]
[EventCountry "HUN"]
[SourceTitle "playchess.com"]
[Source "ChessBase"]
[SourceQuality "1"]
[WhiteTeam "India"]
[BlackTeam "Iceland"]
[WhiteTeamCountry "IND"]
[BlackTeamCountry "ISL"]
[TimeControl "40/5400+30:1800+30"]

{[%evp 12,75,-9,-8,7,0,4,4,8,-11,2,-3,66,60,58,37,37,33,21,-16,145,-31,129,114,124,101,152,166,152,172,167,164,181,189,172,146,155,149,156,151,177,171,217,244,243,230,285,287,563,465,29969,5367,29974,29968,29978,29979,29979,29980,29980,29981,29981,29982,29981,29982,29989,29990]} 1. d4 {[%emt 0:00:09]} Nf6 {[%emt 0:00:24]} 2. Nf3 {[%emt 0:00:08]} e6 {[%emt 0:00:52]} 3. Bf4 {[%emt 0:00:10]} d5 {[%emt 0:04:41]} 4. e3 {[%emt 0:03:06]} Bd6 {[%emt 0:00:20]} 5. Ne5 {[%emt 0:00:08]} O-O {[%emt 0:02:07]} 6. Bd3 {[%emt 0:00:06]} c5 {[%emt 0:02:19]} 7. c3 {[%emt 0:00:06]} b6 {[%emt 0:09:44]} 8. Nd2 {[%emt 0:04:52]} Ba6 {[%emt 0:01:29]} 9. Bxa6 {[%emt 0:00:38]} Nxa6 {[%emt 0:00:06] The position is equal.} 10. h4 {[%emt 0:00:05]} Qc7 {[%emt 0:03:49]} 11. h5 {[%emt 0:07:39]} Ne4 {[%emt 0:06:09]} (11... cxd4 $11 12. exd4 h6) 12. Nxe4 {[%emt 0:06:15]} dxe4 {[%emt 0:00:10]} 13. Qg4 {[%emt 0:00:06]} cxd4 {[%emt 0:22:32]} 14. exd4 $40 {[%emt 0:00:12][%cal Be3d4,Bd4c5,Bc5b6,Bb6c7][%mdl 160] White attacks.} Rae8 {[%emt 0:04:49]} 15. Rd1 {[%emt 0:09:22] [#]} (15. h6 $5 g6 16. Rh4 $16) 15... Nc5 $2 {[%emt 0:12:58]} 16. Qg3 $2 {[%emt 0:10:46] White is much more active.} ({Better is} 16. h6 $1 $16 {[%csl Gh6][%cal Rg4g7]} g6 17. Nxg6 fxg6 18. Bxd6 Qxd6 19. dxc5 Qxc5 20. Qg3 (20. Qxe4 $2 Qxf2#)) 16... f6 $2 {[%emt 0:02:49]} (16... Nb7 $1 $15 {stays ahead.}) 17. dxc5 $16 {[%emt 0:01:52]} fxe5 {[%emt 0:01:57]} 18. cxb6 {[%emt 0:16:34]} exf4 {[%emt 0:12:40]} (18... axb6 $142 19. Be3 Rf5) 19. bxc7 {[%emt 0:00:12]} fxg3 {[%emt 0:00:05]} 20. Rxd6 {[%emt 0:00:05]} gxf2+ {[%emt 0:00:43][%mdl 4096] Endgame. KRR-KRR} 21. Ke2 {[%emt 0:00:05] Rd7 would now be deadly.} Re7 {[%emt 0:00:19]} 22. Rc6 {[%emt 0:00:56]} Rc8 {[%emt 0:00:13]} 23. Kxf2 {[%emt 0:00:07]} Rcxc7 {[%emt 0:00:07]} 24. Rxc7 {[%emt 0:00:06]} Rxc7 $18 {[%emt 0:00:04] KR-KR} 25. Ke3 {[%emt 0:00:11]} Rd7 {[%emt 0:00:24]} 26. a4 {[%emt 0:03:50]} Rd3+ {[%emt 0:00:47]} (26... Kf7 $142 27. g4 (27. Kxe4 Rd2 $16) 27... a5) 27. Kxe4 {[%emt 0:00:06]} Rd2 {[%emt 0:00:10]} 28. b4 {[%emt 0:00:23]} Rxg2 {[%emt 0:00:12]} 29. Rd1 {[%emt 0:03:56] [#] And now Rd8+ would win.} Rg3 $2 {[%emt 0:00:57]} (29... Re2+ 30. Kf3 Rc2) 30. Rd3 {[%emt 0:16:16]} Rxd3 {[%emt 0:03:17]} (30... Rg4+ $18 31. Ke5 Rh4 32. Rd8+ (32. Kxe6 Re4+ 33. Kd5 Rh4 $18) 32... Kf7 33. Rd7+ Ke8 34. Rxa7 (34. Rxg7 Rxh5+ 35. Kxe6 Rh6+ 36. Kd5 Rh3 $18) 34... g6) 31. Kxd3 {[%emt 0:00:05] Intending a5 and mate. KP-KP} Kf7 {[%emt 0:00:05]} 32. Ke4 {[%emt 0:00:11] White mates.} g5 {[%emt 0:00:44]} 33. hxg6+ {[%emt 0:00:11]} hxg6 {[%emt 0:00:07]} 34. b5 {[%emt 0:00:44][%cal Bb4b5,Bb5a6][%mdl 32]} Ke7 {[%emt 0:00:08]} 35. Ke5 {[%emt 0:00:05]} g5 {[%emt 0:00:19]} 36. c4 {[%emt 0:00:04][%cal Bc3c4,Bc4c5][%mdl 32]} Kd7 {[%emt 0:00:24]} 37. c5 {[%emt 0:00:32]} a5 {[%emt 0:04:33]} 38. bxa6 {[%emt 0:00:42] Weighted Error Value: White=0.17 (very precise) /Black=0.59.  Mistake:       	White=1     	Black=7      Inaccurate:     	White=2     	Black=1      OK:         	White=9     	Black=6      Best:        	White=2     	Black=1} 1-0

[Event "45th FIDE Olympiad 2024"]
[Site "Budapest"]
[Date "2024.09.12"]
[Round "2.10"]
[White "Thabang, Mphane"]
[Black "Birhanu, Tegegn Mehadem"]
[Result "0-1"]
[ECO "A13"]
[WhiteElo "1799"]
[BlackElo "2077"]
[Annotator "NA"]
[PlyCount "78"]
[EventDate "2024.09.05"]
[EventType "team-tourn"]
[EventCountry "HUN"]
[SourceTitle "playchess.com"]
[Source "ChessBase"]
[SourceQuality "1"]
[WhiteTeam "Lesotho"]
[BlackTeam "Ethiopia"]
[WhiteTeamCountry "LES"]
[BlackTeamCountry "ETH"]
[TimeControl "40/5400+30:1800+30"]

1. Nf3 Nf6 2. c4 e6 3. g3 d5 4. Bg2 c6 5. O-O dxc4 6. Ne5 Qd4 7. Nf3 Qc5 8. a4 Be7 9. Qc2 e5 10. Nc3 O-O 11. Ne4 Nxe4 12. Qxe4 Bf6 13. e3 Be6 14. b3 Qd5 15. Qc2 cxb3 16. Qb1 Qd7 17. Bb2 Qc7 18. d3 Nd7 19. Ba3 Rfe8 20. Nd2 Qb6 21. Rc1 Be7 22. Nc4 Bxc4 23. Rxc4 Rad8 24. Qb2 Bxa3 25. Qxa3 Nf6 26. Rb4 Qc7 27. Qxb3 Re7 28. Rb1 b6 29. Rc1 Re6 30. a5 c5 31. Rb5 Red6 32. Rcxc5 bxc5 33. Rb7 c4 34. dxc4 Qxa5 35. c5 R6d7 36. c6 Rc7 37. Qd3 Rxb7 38. cxb7 Rxd3 39. b8=Q+ Rd8 0-1

[Event "45th FIDE Olympiad 2024"]
[Site "Budapest"]
[Date "2024.09.12"]
[Round "2.11"]
[White "Heimisson, Hilmir Freyr"]
[Black "Vidit, Santosh Gujrathi"]
[Result "0-1"]
[ECO "B12"]
[WhiteElo "2391"]
[BlackElo "2720"]
[Annotator "TA"]
[PlyCount "78"]
[EventDate "2024.09.05"]
[EventType "team-tourn"]
[EventCountry "HUN"]
[SourceTitle "playchess.com"]
[Source "ChessBase"]
[SourceQuality "1"]
[WhiteTeam "Iceland"]
[BlackTeam "India"]
[WhiteTeamCountry "ISL"]
[BlackTeamCountry "IND"]
[TimeControl "40/5400+30:1800+30"]

{[%evp 10,78,18,21,18,23,38,22,30,24,43,37,48,20,25,0,21,0,0,0,33,6,30,0,0,-12,34,-18,-17,-14,-18,-22,-24,-47,0,-58,-52,-64,-52,-61,-61,-57,-52,-54,-49,-163,-171,-171,-161,-190,-158,-143,-8,-41,-23,-33,-23,-203,-193,-196,-201,-610,-522,-738,-734,-730,-602,-680,-621,-1286,-1277]} 1. e4 {[%emt 0:00:18]} c6 {[%emt 0:00:37]} 2. d4 {[%emt 0:01:12]} d5 {[%emt 0:00:10]} 3. e5 {[%emt 0:00:29]} Bf5 {[%emt 0:00:18]} 4. Nd2 {[%emt 0:00:57]} e6 {[%emt 0:00:40]} 5. Nb3 {[%emt 0:00:20]} Nd7 {[%emt 0:01:52]} 6. Nf3 {[%emt 0:01:08]} Ne7 {[%emt 0:09:27]} 7. Be2 {[%emt 0:01:48]} h6 {[%emt 0:08:25]} 8. O-O {[%emt 0:00:53]} Bh7 {[%emt 0:05:43] The position is equal.} 9. a4 {[%emt 0:03:48]} a5 {[%emt 0:02:55]} 10. Bd2 {[%emt 0:03:24]} Nc8 {[%emt 0:09:02]} 11. Rc1 {[%emt 0:07:06]} Be7 {[%emt 0:03:21]} 12. Qe1 {[%emt 0:02:19][%cal Oe2d3]} b6 {[%emt 0:01:02]} 13. h3 {[%emt 0:01:59]} O-O {[%emt 0:05:53]} 14. c4 {[%emt 0:00:58]} Be4 {[%emt 0:04:24]} 15. Nh2 {[%emt 0:15:07]} c5 {[%emt 0:10:44]} 16. f3 {[%emt 0:05:05]} dxc4 $1 {[%emt 0:01:57]} 17. Bxc4 {[%emt 0:02:31]} Bc6 {[%emt 0:00:54]} (17... Bh7 $11 {feels stronger.}) 18. Ng4 {[%emt 0:02:24]} (18. f4 $14) 18... h5 $11 {[%emt 0:03:40]} 19. Nf2 {[%emt 0:06:54]} Bxa4 {[%emt 0:10:33]} 20. Qe4 {[%emt 0:04:31]} Ra7 {[%emt 0:00:19]} 21. g4 {[%emt 0:12:11]} h4 {[%emt 0:02:58]} (21... Bg5 $15 {might be stronger.}) 22. d5 {[%emt 0:05:42]} (22. f4 $11) 22... exd5 {[%emt 0:01:29]} (22... Nxe5 {seems wilder.} 23. Qxe5 Bf6 24. Qf4 exd5 25. Bxd5 Bxb2 26. Rb1 Qxd5 27. Qxa4 Be5) 23. Bxd5 {[%emt 0:00:41] [#]} c4 $1 {[%emt 0:03:55]} 24. Bxc4 {[%emt 0:14:53] [#]} Nxe5 {[%emt 0:05:36]} 25. Qxe5 {[%emt 0:01:12] Ne4 would now be deadly.} Bxb3 {[%emt 0:00:01]} 26. Bxb3 {[%emt 0:00:56]} Qxd2 {[%emt 0:00:01]} 27. Bxf7+ {[%emt 0:01:26]} Kxf7 $19 {[%emt 0:00:20]} 28. Rxc8 {[%emt 0:01:11]} Rxc8 {[%emt 0:01:28]} 29. Qf5+ {[%emt 0:00:04]} Bf6 {[%emt 0:00:16]} 30. Qxc8 {[%emt 0:00:26]} Re7 {[%emt 0:02:08] Active counter play!} ({Much worse is} 30... Qxb2 $6 31. Qc4+ Kf8 32. Qc8+ Kf7 33. Qc4+ Kg6 34. Qe4+ Kf7 35. Qc4+ $11) ({Black should try} 30... Bd4 $1 $17 {[%cal Og7g6] Threatens to win with ...g6!} 31. Kg2 g6 (31... Bxb2 32. Qc4+ Ke7 33. Qe4+ Kf8 34. Rd1 $18)) 31. Ne4 {[%emt 0:01:02]} Qf4 {[%emt 0:01:45]} (31... Qxb2 32. Nd6+ Kg6 33. Qf5+ Kh6 34. Qh5#) 32. Qc6 {[%emt 0:01:21]} Be5 {[%emt 0:00:59]} 33. Rf2 {[%emt 0:00:47] [#] Wards off Qh2+. This move loses the game for White.} (33. Rd1 $11 {and White stays safe.}) 33... Rc7 $1 $40 {[%emt 0:00:28][%mdl 128] White is in trouble.} 34. Qd5+ {[%emt 0:01:05] [#]} Ke7 $1 {[%emt 0:00:46] ( -> ...Rc1+)} 35. Rd2 $2 {[%emt 0:01:00]} (35. Kf1) 35... Rc1+ {[%emt 0:00:36] Black is clearly winning.} 36. Kf2 {[%emt 0:00:43]} Qh2+ {[%emt 0:00:12]} 37. Ke3 {[%emt 0:00:06]} Bf4+ {[%emt 0:00:21]} ({Stronger than} 37... Qxh3 38. Qxe5+ (38. Qd8+ Kf7 39. Rd7+ Kg6 40. Qe8+ Kh7 41. Qh5+ Kg8 42. Rd8#) 38... Kf8 39. Rd8+ Kf7 40. Qe8#) 38. Kd3 {[%emt 0:00:36]} Bxd2 {[%emt 0:00:08]} 39. Qd4 {[%emt 0:00:50]} Bh6 {[%emt 0:00:52] Weighted Error Value: White=0.77/Black=0.14 (very precise) .  Loses game:     	White=1     	---        Mistake:       	White=4     	Black=3      Inaccurate:     	White=5     	Black=1      OK:         	White=13    	Black=6      Best:        	---       	Black=5      Strong:       	---       	Black=3      Brilliant:      	---       	Black=1} 0-1

[Event "45th FIDE Olympiad 2024"]
[Site "Budapest"]
[Date "2024.09.12"]
[Round "2.11"]
[White "Tsige, Addisalem Temesgen"]
[Black "Tsephe, Lebajoa"]
[Result "1/2-1/2"]
[ECO "D00"]
[WhiteElo "2068"]
[BlackElo "1900"]
[Annotator "NA"]
[PlyCount "102"]
[EventDate "2024.09.05"]
[EventType "team-tourn"]
[EventCountry "HUN"]
[SourceTitle "playchess.com"]
[Source "ChessBase"]
[SourceQuality "1"]
[WhiteTeam "Ethiopia"]
[BlackTeam "Lesotho"]
[WhiteTeamCountry "ETH"]
[BlackTeamCountry "LES"]
[TimeControl "40/5400+30:1800+30"]

1. d4 d5 2. Bf4 e6 3. e3 Bd6 4. Bxd6 Qxd6 5. Qg4 Kf8 6. Nc3 Nf6 7. Qh4 a6 8. Nf3 Nbd7 9. O-O-O b5 10. e4 dxe4 11. Nxe4 Qe7 12. Ne5 Bb7 13. Ng5 Nxe5 14. dxe5 Nd5 15. Nxh7+ Kg8 16. Qxe7 Nxe7 17. Rd7 Nd5 18. Ng5 Rf8 19. c4 Bc6 20. Rxf7 Rxf7 21. Nxf7 Kxf7 22. cxd5 Bxd5 23. a3 Rh5 24. Kd2 Rxe5 25. f3 Ke7 26. Be2 Bb3 27. h4 c5 28. h5 Bd5 29. g4 Bc6 30. Rh2 Rd5+ 31. Ke3 e5 32. Bd3 Rd6 33. Be4 Be8 34. g5 Bf7 35. h6 gxh6 36. gxh6 Rd8 37. h7 Rh8 38. Rh6 Be6 39. Rh2 c4 40. Rg2 Kf6 41. Kd2 a5 42. Ke3 b4 43. f4 exf4+ 44. Kxf4 c3 45. axb4 axb4 46. bxc3 bxc3 47. Rc2 Bg8 48. Rxc3 Bxh7 49. Rc6+ Kg7 50. Rc7+ Kh6 51. Rc6+ Kg7 1/2-1/2

[Event "45th FIDE Olympiad 2024"]
[Site "Budapest"]
[Date "2024.09.12"]
[Round "2.12"]
[White "Harikrishna, Pentala"]
[Black "Gretarsson, Helgi Ass"]
[Result "1-0"]
[ECO "D15"]
[WhiteElo "2686"]
[BlackElo "2450"]
[Annotator "TA"]
[PlyCount "115"]
[EventDate "2024.09.05"]
[EventType "team-tourn"]
[EventCountry "HUN"]
[SourceTitle "playchess.com"]
[Source "ChessBase"]
[SourceQuality "1"]
[WhiteTeam "India"]
[BlackTeam "Iceland"]
[WhiteTeamCountry "IND"]
[BlackTeamCountry "ISL"]
[TimeControl "40/5400+30:1800+30"]

{[%evp 47,115,22,16,6,42,55,62,64,63,66,66,73,83,85,95,91,102,98,110,45,33,19,32,23,37,0,0,0,0,0,0,0,10,10,194,103,110,156,175,78,78,76,93,110,285,241,331,109,131,133,113,106,96,0,0,0,0,0,0,0,0,-263,29977,29978,29986,29987,29987,29988,29993,29994]} 1. d4 {[%emt 0:00:07]} d5 {[%emt 0:00:19]} 2. Nf3 {[%emt 0:00:10]} Nf6 {[%emt 0:00:52]} 3. c4 {[%emt 0:00:07]} c6 {[%emt 0:00:08]} 4. Nc3 {[%emt 0:00:17]} a6 {[%emt 0:00:38]} 5. a4 {[%emt 0:05:45]} e6 {[%emt 0:15:09]} 6. Bg5 {[%emt 0:02:44]} Be7 {[%emt 0:02:23]} 7. e3 {[%emt 0:02:44] D15: Slav Defence: 4 Nc3 a6 and gambit lines after 4 Nc3 dxc4.} a5 {[%emt 0:00:15]} 8. Bd3 {[%emt 0:04:11]} Na6 {[%emt 0:00:09]} 9. O-O {[%emt 0:03:26]} Nb4 {[%emt 0:00:09]} 10. Bb1 {[%emt 0:06:14]} b6 {[%emt 0:02:34]} 11. cxd5 $146 {[%emt 0:02:50]} ({Predecessor:} 11. e4 dxe4 12. Nxe4 Ba6 13. b3 Nxe4 14. Bxe7 Qxe7 15. Bxe4 Rd8 16. Qd2 c5 17. Rad1 cxd4 {½-½ Knaak,R (2486)-Kindermann,S (2532) Bundesliga 0607 2006 (2.8)}) 11... cxd5 {[%emt 0:04:51]} 12. Bd3 {[%emt 0:04:32]} O-O {[%emt 0:08:18]} 13. Rc1 {[%emt 0:00:54]} Bb7 {[%emt 0:19:44]} 14. Nb5 {[%emt 0:06:47]} Rc8 {[%emt 0:00:31]} 15. Rxc8 {[%emt 0:03:06]} Qxc8 {[%emt 0:05:16]} 16. Ne5 {[%emt 0:02:56]} Qd8 {[%emt 0:09:16]} 17. Bf4 {[%emt 0:09:32]} Ne4 {[%emt 0:03:25]} 18. Bb1 {[%emt 0:04:02]} Ba6 {[%emt 0:04:39]} 19. Qe2 {[%emt 0:04:27]} f6 {[%emt 0:01:04]} 20. Nd3 {[%emt 0:03:23]} Bxb5 {[%emt 0:00:26]} 21. axb5 {[%emt 0:00:09]} Qd7 {[%emt 0:00:17]} 22. f3 {[%emt 0:01:06]} Nd6 {[%emt 0:05:28]} 23. Nxb4 {[%emt 0:01:24]} axb4 {[%emt 0:00:01]} 24. Bd3 {[%emt 0:02:11]} Rc8 {[%emt 0:00:37]} 25. Bg3 {[%emt 0:01:51]} Nf7 {[%emt 0:05:18]} 26. Bf2 {[%emt 0:02:45]} Bd6 {[%emt 0:00:37]} 27. e4 {[%emt 0:03:02]} g6 {[%emt 0:08:54]} 28. Be3 {[%emt 0:04:54]} Kg7 {[%emt 0:00:07]} 29. f4 {[%emt 0:00:13]} dxe4 {[%emt 0:00:47]} 30. Bxe4 {[%emt 0:00:09]} Bb8 {[%emt 0:02:32]} 31. Bc6 {[%emt 0:01:21]} Qd6 {[%emt 0:00:01]} 32. d5 {[%emt 0:05:01]} Bc7 {[%emt 0:00:06]} 33. Qc4 {[%emt 0:02:37]} (33. Qg4 $16 f5 34. Bd4+ Kg8 35. Qg3) 33... e5 $14 {[%emt 0:00:49]} 34. f5 {[%emt 0:01:36]} Qe7 {[%emt 0:00:06]} 35. Qg4 {[%emt 0:01:34]} g5 {[%emt 0:01:41]} 36. Qe4 {[%emt 0:03:10]} Rb8 {[%emt 0:00:24]} 37. g3 {[%emt 0:01:45]} Bd6 {[%emt 0:00:26]} 38. Rc1 {[%emt 0:00:49]} Qa7 {[%emt 0:00:18]} 39. Qc4 {[%emt 0:00:58]} Rc8 {[%emt 0:00:44]} 40. Kg2 {[%emt 0:00:50]} Nd8 $2 {[%emt 0:00:36]} (40... h5 $11 {and Black has nothing to worry.}) 41. Qf1 {[%emt 0:34:49]} (41. h4 $18 g4 42. Qxg4+ Kh8 43. Bh6) 41... Qa2 {[%emt 0:06:30]} 42. Qe2 {[%emt 0:00:00]} (42. Bxb6 $6 Qxb2+ 43. Bf2 b3 $11) 42... Rb8 {[%emt 0:09:14]} 43. Qd2 {[%emt 0:00:00]} (43. h4 $18 gxh4 44. Qg4+ (44. gxh4 Kh8 $11) 44... Kh8 45. Bh6 (45. gxh4 $2 Nxc6 46. bxc6 Rg8 $19) (45. Qxh4 Qxb2+ 46. Kf1 e4 $11)) 43... Nf7 {[%emt 0:00:41]} 44. Bd7 $1 {[%emt 0:00:00]} e4 {[%emt 0:07:20]} 45. Be6 {[%emt 0:00:00]} Qb3 $2 {[%emt 0:00:14]} (45... Ne5 $16) 46. Rc7 {[%emt 0:00:00]} Rf8 {[%emt 0:01:24]} 47. Rb7 $2 {[%emt 0:00:00]} (47. Qe2 $18 {and White stays clearly on top.} Bxc7 48. d6) 47... Bc5 $16 {[%emt 0:00:20]} 48. Bxc5 {[%emt 0:00:00]} Qf3+ {[%emt 0:00:29]} 49. Kg1 {[%emt 0:00:00]} bxc5 {[%emt 0:00:03] [#]} 50. Qf2 {[%emt 0:00:00]} ({Better is} 50. Qe1 $1 $16 {And now b6 would win.} e3 51. Re7) 50... Qd1+ $11 {[%emt 0:06:47]} 51. Kg2 {[%emt 0:00:00]} Qd3 {[%emt 0:00:02]} 52. b6 {[%emt 0:00:00]} (52. Qxc5 $2 Qf3+ 53. Kg1 e3 $19) (52. Rxf7+ $2 Rxf7 53. Bxf7 e3 $19 (53... Kxf7 54. Qxc5 Qd2+ 55. Kh3 $11)) 52... e3 {[%emt 0:01:01]} 53. Qf3 {[%emt 0:00:00]} Qd2+ {[%emt 0:00:30]} 54. Kh3 $2 {[%emt 0:00:00][%mdl 8192]} (54. Kf1 $11 Qc1+ 55. Kg2 Qd2+ (55... Qxb2+ 56. Kh3 $16) 56. Kf1) 54... Qe1 $4 {[%emt 0:00:07][%mdl 8192] [#]} ({Worse is} 54... Qxb2 55. Qh5 (55. Qxe3 h5 $18) 55... Kh8 56. Rxf7 Rxf7 57. Qxf7 g4+ 58. Kxg4 Qe2+ 59. Kh3 Qf1+ 60. Kh4) (54... e2 $19 55. Bxf7 Kh8 (55... e1=R 56. Be6+) (55... Rxf7 56. Rxf7+ Kxf7 57. b7 $11)) 55. Bxf7 $1 {[%emt 0:01:48]} Rxf7 {[%emt 0:02:35]} 56. Rxf7+ {[%emt 0:00:12]} Kxf7 {[%emt 0:00:02]} 57. b7 {[%emt 0:00:28]} e2 {[%emt 0:00:20]} 58. Qh5+ {[%emt 0:00:29]} (58. b8=B {is a self mate.} Qf1+ 59. Qg2 e1=Q (59... g4+ {leads to mate.} 60. Kxg4 Qxg2 61. h3 h5+ 62. Kh4 e1=N 63. g4 Nf3+ 64. Kxh5 Qxh3#) (59... g4+ 60. Kxg4 Qxg2 61. h4 e1=Q 62. Kh5 Kg7 63. Kg4 Qee4+ 64. Bf4 Qef3#)) 1-0

[Event "45th FIDE Olympiad 2024"]
[Site "Budapest"]
[Date "2024.09.12"]
[Round "2.12"]
[White "Motlomelo, Lihloela"]
[Black "Kebede, Yoseph Kifle"]
[Result "1-0"]
[ECO "B49"]
[WhiteElo "1696"]
[BlackElo "2037"]
[Annotator "NA"]
[PlyCount "118"]
[EventDate "2024.09.05"]
[EventType "team-tourn"]
[EventCountry "HUN"]
[SourceTitle "playchess.com"]
[Source "ChessBase"]
[SourceQuality "1"]
[WhiteTeam "Lesotho"]
[BlackTeam "Ethiopia"]
[WhiteTeamCountry "LES"]
[BlackTeamCountry "ETH"]
[TimeControl "40/5400+30:1800+30"]

1. e4 c5 2. Nf3 e6 3. d4 cxd4 4. Nxd4 Nc6 5. Nc3 Qc7 6. Be3 a6 7. Be2 b5 8. O-O Bb7 9. f4 Na5 10. e5 Nc4 11. Bxc4 Qxc4 12. Qd3 Rc8 13. Rad1 Ne7 14. Qd2 Nd5 15. Nxd5 Bxd5 16. b3 Qc3 17. Qf2 g6 18. f5 exf5 19. Nxf5 Qxc2 20. Rxd5 Qxf2+ 21. Rxf2 gxf5 22. Rxf5 Rc2 23. Rf2 Rxf2 24. Kxf2 Rg8 25. Kf3 Rg6 26. g4 Rc6 27. Rd1 Ba3 28. Ke4 Rc2 29. Rd2 Rc3 30. Re2 Be7 31. Bd4 Rc1 32. Be3 Rc3 33. Bd4 Rc1 34. Be3 Rf1 35. Rc2 f6 36. Rf2 Rxf2 37. Bxf2 Kf7 38. exf6 Bxf6 39. Kd5 Be7 40. Bc5 Bd8 41. Bd6 Kg6 42. Bg3 Be7 43. h4 Kf7 44. h5 Bb4 45. Bf4 Kf6 46. Be3 Be7 47. g5+ Kf5 48. g6 hxg6 49. h6 Bf6 50. h7 g5 51. Bd4 Kg6 52. Bxf6 Kxh7 53. Bxg5 Kg6 54. Bd2 Kf5 55. Kd6 Ke4 56. Kxd7 Kd3 57. Ba5 Kc2 58. Kc6 Kb2 59. b4 Kxa2 1-0